fUSD/lending_fUSD_20240518
["ID","MTS","AMOUNT","RATE_DAILY","PERIOD"]
[327409756,1716046246845,-500.0,0.00027915,2]
[327409757,1716046246854,-500.0,0.00027915,2]
[327409758,1716046246864,-622.78,0.00027915,2]
[327409760,1716046246874,-500.0,0.00027915,2]
[327409762,1716046246883,-500.0,0.00027915,2]
[327409764,1716046246893,-500.0,0.00027915,2]
[327409766,1716046246902,-500.0,0.00027915,2]
[327409768,1716046246911,-294.08,0.00027915,2]
[327409770,1716046246921,-500.0,0.00027915,2]
[327409772,1716046246930,-500.0,0.00027915,2]
[327409774,1716046246939,-500.0,0.00027915,2]
[327409776,1716046246950,-500.0,0.00027915,2]
[327409778,1716046246960,-500.0,0.00027915,2]
[327409780,1716046246970,-500.0,0.00027915,2]
[327409782,1716046246984,-500.0,0.00027915,2]
[327409784,1716046246993,-500.0,0.00027915,2]
[327409786,1716046247002,-500.0,0.00027915,2]
[327409788,1716046247014,-500.0,0.00027915,2]
[327409790,1716046247024,-896.8,0.00027915,2]
[327409792,1716046247033,-500.0,0.00027915,2]
[327409794,1716046247043,-500.0,0.00027915,2]
[327409796,1716046247053,-500.0,0.00027915,2]
[327409798,1716046247063,-500.0,0.00027915,2]
[327409800,1716046247073,-500.0,0.00027915,2]
[327409802,1716046247083,-500.0,0.00027915,2]
[327409804,1716046247092,-500.0,0.00027915,2]
[327409806,1716046247102,-500.0,0.00027915,2]
[327409808,1716046247111,-500.0,0.00027915,2]
[327409810,1716046247121,-500.0,0.00027915,2]
[327409812,1716046247131,-500.0,0.00027915,2]
[327409837,1716046247351,-500.0,0.00027915,2]
[327409839,1716046247362,-603.91,0.00027915,2]
[327409841,1716046247371,-655.65,0.00027915,2]
[327409843,1716046247381,-500.0,0.00027915,2]
[327409845,1716046247390,-500.0,0.00027915,2]
[327409847,1716046247399,-500.0,0.00027915,2]
[327409849,1716046247411,-500.0,0.00027915,2]
[327409851,1716046247420,-500.0,0.00027915,2]
[327409853,1716046247429,-500.0,0.00027915,2]
[327409855,1716046247439,-393.42,0.00027915,2]
[327409857,1716046247449,-1041.33,0.00027915,2]
[327409859,1716046247458,-500.0,0.00027915,2]
[327409861,1716046247467,-549.92,0.00027915,2]
[327409863,1716046247476,-260.52,0.00027915,2]
[327409865,1716046247488,-240.54,0.00027915,2]
[327409867,1716046247496,-500.0,0.00027915,2]
[327409869,1716046247505,-500.0,0.00027915,2]
[327409871,1716046247514,-500.0,0.00027915,2]
[327409873,1716046247523,-934.31,0.00027915,2]
[327409875,1716046247533,-500.0,0.00027915,2]
[327409876,1716046247542,-3103.69,0.00027915,2]
[327409879,1716046247551,-500.0,0.00027915,2]
[327409880,1716046247560,-500.0,0.00027915,2]
[327409882,1716046247570,-4162.6,0.00027915,2]
[327409885,1716046247579,-546.4,0.00027915,2]
[327409887,1716046247589,-1266.21,0.00027915,2]
[327409888,1716046247598,-500.0,0.00027915,2]
[327409891,1716046247607,-500.0,0.00027915,2]
[327409892,1716046247616,-500.0,0.00027915,2]
[327409894,1716046247626,-500.0,0.00027915,2]
[327409895,1716046247635,-588.28,0.00027915,2]
[327409896,1716046247645,-202.2,0.00027915,2]
[327409897,1716046247655,-500.0,0.00027915,2]
[327409898,1716046247664,-256.58,0.00027915,2]
[327409899,1716046247674,-1164.52,0.00027915,2]
[327409900,1716046247683,-3597.46,0.00027915,2]
[327409901,1716046247692,-198.86,0.00027915,2]
[327409902,1716046247703,-578.67,0.00027915,2]
[327409904,1716046247712,-500.0,0.00027915,2]
[327409906,1716046247721,-568.11769606,0.00027915,2]
[327409908,1716046247731,-1187.83,0.00027915,2]
[327409910,1716046247740,-500.0,0.00027915,2]
[327409912,1716046247749,-500.0,0.00027915,2]
[327409914,1716046247758,-500.0,0.00027915,2]
[327409916,1716046247767,-500.0,0.00027915,2]
[327409918,1716046247777,-626.37,0.00027915,2]
[327409920,1716046247786,-500.0,0.00027915,2]
[327409922,1716046247795,-290.29594837,0.00027938,2]
[327409924,1716046247805,-629.53203336,0.00027939,2]
[327409926,1716046247814,-1142.10819413,0.00027939,2]
[327409928,1716046247823,-413.87982626,0.00027941,2]
[327409930,1716046247832,-500.0,0.00027941,2]
[327409932,1716046247842,-500.0,0.00027941,2]
[327409934,1716046247851,-248.70839796,0.00027941,2]
[327409936,1716046247860,-500.0,0.00027941,2]
[327409938,1716046247869,-500.0,0.00027941,2]
[327409940,1716046247879,-500.0,0.00027941,2]
[327409942,1716046247887,-500.0,0.00027941,2]
[327409944,1716046247897,-500.0,0.00027941,2]
[327409946,1716046247906,-500.0,0.00027941,2]
[327409948,1716046247916,-545.32,0.00027941,2]
[327409950,1716046247926,-500.0,0.00027941,2]
[327409952,1716046247935,-500.0,0.00027941,2]
[327409954,1716046247944,-500.0,0.00027941,2]
[327409956,1716046247954,-500.0,0.00027941,2]
[327409958,1716046247963,-264.93769627,0.00027941,2]
[327409960,1716046247974,-500.0,0.00027941,2]
[327409962,1716046247984,-500.0,0.00027941,2]
[327409964,1716046247993,-500.0,0.00027942,2]
[327409966,1716046248002,-620.98,0.00027942,2]
[327409968,1716046248011,-500.0,0.00027942,2]
[327409970,1716046248022,-176.5003404,0.00027942,2]
[327409972,1716046248039,-165.30463805,0.00028114,2]
[327409975,1716046248052,-500.0,0.00028114,2]
[327409977,1716046248061,-500.0,0.00028114,2]
[327409979,1716046248072,-314.87,0.00028114,2]
[327409981,1716046248082,-500.0,0.00028114,2]
[327409983,1716046248091,-500.0,0.00028114,2]
[327409985,1716046248101,-500.0,0.00028114,2]
[327409987,1716046248110,-500.0,0.00028114,2]
[327409989,1716046248119,-500.0,0.00028114,2]
[327409991,1716046248128,-500.0,0.00028114,2]
[327409993,1716046248138,-500.0,0.00028114,2]
[327409995,1716046248147,-500.0,0.00028114,2]
[327409997,1716046248157,-500.0,0.00028114,2]
[327409999,1716046248167,-500.0,0.00028114,2]
[327410001,1716046248177,-500.7770381,0.00028114,2]
[327410003,1716046248187,-500.0,0.00028114,2]
[327410006,1716046248197,-500.0,0.00028114,2]
[327410007,1716046248207,-500.0,0.00028114,2]
[327410009,1716046248217,-500.0,0.00028114,2]
[327410011,1716046248226,-500.0,0.00028114,2]
[327410013,1716046248235,-500.0,0.00028114,2]
[327410015,1716046248244,-347.77327309,0.00028114,2]
[327410017,1716046248254,-500.0,0.00028114,2]
[327410019,1716046248263,-500.0,0.00028114,2]
[327410021,1716046248273,-500.0,0.00028114,2]
[327410024,1716046248283,-500.0,0.00028114,2]
[327410026,1716046248294,-500.0,0.00028114,2]
[327410028,1716046248303,-278.12002326,0.00028114,2]
[327410030,1716046248313,-355.47923135,0.00028114,2]
[327410032,1716046248322,-500.0,0.00028114,2]
[327410034,1716046248332,-500.0,0.00028114,2]
[327410036,1716046248342,-500.0,0.00028114,2]
[327410038,1716046248351,-500.0,0.00028114,2]
[327410040,1716046248361,-500.0,0.00028114,2]
[327410042,1716046248371,-500.0,0.00028114,2]
[327410044,1716046248380,-500.0,0.00028114,2]
[327410046,1716046248390,-254.43182813,0.00028114,2]
[327410048,1716046248399,-205.41674766,0.00028114,2]
[327410050,1716046248409,-500.0,0.00028114,2]
[327410052,1716046248420,-171.54,0.00028188,2]
[327410054,1716046248429,-500.0,0.00028188,2]
[327410056,1716046248439,-500.0,0.00028188,2]
[327410058,1716046248450,-500.0,0.00028188,2]
[327410060,1716046248459,-500.0,0.00028188,2]
[327410062,1716046248469,-500.0,0.00028188,2]
[327410064,1716046248479,-500.0,0.00028188,2]
[327410066,1716046248488,-809.8,0.00028188,2]
[327410068,1716046248497,-500.0,0.00028188,2]
[327410069,1716046248506,-541.69,0.00028188,2]
[327410071,1716046248516,-500.0,0.00028188,2]
[327410072,1716046248525,-560.69,0.00028188,2]
[327410074,1716046248532,-500.0,0.00028188,2]
[327410076,1716046248540,-500.0,0.00028188,2]
[327410077,1716046248547,-500.0,0.00028188,2]
[327410079,1716046248553,-500.0,0.00028188,2]
[327410080,1716046248560,-1986.3,0.00028188,2]
[327410082,1716046248568,-500.0,0.00028188,2]
[327410084,1716046248576,-500.0,0.00028188,2]
[327410085,1716046248585,-3819.55,0.00028188,2]
[327410087,1716046248593,-500.0,0.00028188,2]
[327410088,1716046248602,-181.23496915,0.00028188,2]
[327410090,1716046248612,-682.63,0.00028188,2]
[327410092,1716046248622,-203.41,0.00028188,2]
[327410093,1716046248631,-500.0,0.00028188,2]
[327410095,1716046248641,-500.0,0.00028188,2]
[327410097,1716046248651,-500.0,0.00028188,2]
[327410099,1716046248662,-500.0,0.00028188,2]
[327410100,1716046248671,-500.0,0.00028188,2]
[327410102,1716046248681,-500.0,0.00028189,2]
[327410104,1716046248691,-500.0,0.00028189,2]
[327410106,1716046248701,-500.0,0.00028189,2]
[327410108,1716046248710,-500.0,0.00028189,2]
[327410109,1716046248720,-500.0,0.00028189,2]
[327410111,1716046248730,-500.0,0.00028189,2]
[327410113,1716046248739,-500.0,0.00028189,2]
[327410114,1716046248749,-180.45,0.00028189,2]
[327410116,1716046248758,-500.0,0.00028189,2]
[327410118,1716046248768,-500.0,0.00028189,2]
[327410120,1716046248777,-500.0,0.00028189,2]
[327410121,1716046248787,-500.0,0.00028189,2]
[327410123,1716046248796,-500.0,0.00028189,2]
[327410125,1716046248806,-569.34,0.00028189,2]
[327410127,1716046248815,-500.0,0.00028189,2]
[327410128,1716046248824,-500.0,0.00028189,2]
[327410130,1716046248833,-500.0,0.00028189,2]
[327410132,1716046248842,-251.16,0.00028189,2]
[327410134,1716046248851,-500.0,0.00028189,2]
[327410135,1716046248861,-500.0,0.00028189,2]
[327410137,1716046248870,-500.0,0.00028189,2]
[327410139,1716046248879,-456.98,0.00028189,2]
[327410141,1716046248889,-500.0,0.00028189,2]
[327410142,1716046248899,-500.0,0.00028189,2]
[327410144,1716046248909,-500.0,0.00028189,2]
[327410146,1716046248919,-500.0,0.00028189,2]
[327410148,1716046248928,-500.0,0.00028189,2]
[327410150,1716046248941,-500.0,0.00028189,2]
[327410152,1716046248951,-989.77,0.00028189,2]
[327410154,1716046248961,-500.0,0.00028189,2]
[327410156,1716046248975,-500.0,0.00028189,2]
[327410157,1716046248984,-608.1,0.00028189,2]
[327410159,1716046248994,-500.0,0.00028189,2]
[327410161,1716046249004,-500.0,0.00028189,2]
[327410163,1716046249016,-500.0,0.00028189,2]
[327410165,1716046249025,-500.0,0.00028189,2]
[327410167,1716046249035,-500.0,0.00028189,2]
[327410168,1716046249045,-500.0,0.00028189,2]
[327410170,1716046249056,-166.13,0.00028189,2]
[327410172,1716046249066,-500.0,0.00028189,2]
[327410174,1716046249076,-500.0,0.00028189,2]
[327410176,1716046249086,-464.46,0.00028189,2]
[327410178,1716046249095,-500.0,0.00028189,2]
[327410179,1716046249105,-502.62,0.00028189,2]
[327410181,1716046249115,-500.0,0.00028189,2]
[327410183,1716046249125,-500.0,0.00028189,2]
[327410185,1716046249135,-500.0,0.00028189,2]
[327410188,1716046249155,-896.8,0.00028189,2]
[327410190,1716046249169,-500.0,0.00028189,2]
[327410192,1716046249183,-500.0,0.00028189,2]
[327410194,1716046249196,-500.0,0.00028189,2]
[327410196,1716046249209,-219.16,0.00028189,2]
[327410198,1716046249222,-500.0,0.00028189,2]
[327410200,1716046249233,-500.0,0.00028189,2]
[327410202,1716046249244,-500.0,0.00028189,2]
[327410204,1716046249254,-500.0,0.00028189,2]
[327410206,1716046249267,-500.0,0.00028189,2]
[327410208,1716046249280,-500.0,0.00028189,2]
[327410210,1716046249292,-655.65,0.00028189,2]
[327410212,1716046249304,-500.0,0.00028189,2]
[327410214,1716046249316,-179.24,0.00028189,2]
[327410216,1716046249327,-500.0,0.00028189,2]
[327410218,1716046249339,-500.0,0.00028189,2]
[327410220,1716046249351,-500.0,0.00028189,2]
[327410222,1716046249362,-1041.33,0.00028189,2]
[327410224,1716046249374,-500.0,0.00028189,2]
[327410226,1716046249387,-549.92,0.00028189,2]
[327410229,1716046249400,-500.0,0.00028189,2]
[327410231,1716046249413,-500.0,0.00028189,2]
[327410233,1716046249424,-934.31,0.00028189,2]
[327410236,1716046249435,-3103.69,0.00028189,2]
[327410238,1716046249448,-500.0,0.00028189,2]
[327410240,1716046249459,-4162.6,0.00028189,2]
[327410242,1716046249472,-546.4,0.00028189,2]
[327410245,1716046249485,-1266.21,0.00028189,2]
[327410246,1716046249496,-500.0,0.00028189,2]
[327410247,1716046249509,-500.0,0.00028189,2]
[327410248,1716046249521,-500.0,0.00028189,2]
[327410249,1716046249534,-500.0,0.00028189,2]
[327410250,1716046249545,-500.0,0.00028189,2]
[327410251,1716046249557,-1164.52,0.00028189,2]
[327410252,1716046249569,-3597.46,0.00028189,2]
[327410253,1716046249579,-578.67,0.00028189,2]
[327410254,1716046249590,-1187.83,0.00028189,2]
[327410255,1716046249600,-374.12,0.00028189,2]
[327410256,1716046249613,-500.0,0.00028189,2]
[327410257,1716046249624,-599.15,0.00028189,2]
[327410259,1716046249635,-500.0,0.00028189,2]
[327410261,1716046249645,-500.0,0.00028189,2]
[327410263,1716046249657,-1003.7649267,0.00028198,2]
[327410265,1716046249669,-160.0,0.00028212,2]
[327410268,1716046249681,-341.89894428,0.00028213,2]
[327410270,1716046249692,-194.88992387,0.00028213,2]
[327410272,1716046249704,-156.34146276,0.00028213,2]
[327410275,1716046249717,-209.54616572,0.00028214,2]
[327410277,1716046249729,-210.49086009,0.00028214,2]
[327410279,1716046249741,-731.23307714,0.00028214,2]
[327410282,1716046249753,-489.59485286,0.00028214,2]
[327410284,1716046249765,-500.0,0.00028215,2]
[327410286,1716046249775,-500.0,0.00028215,2]
[327410288,1716046249786,-500.0,0.00028215,2]
[327410290,1716046249796,-500.0,0.00028215,2]
[327410292,1716046249806,-500.0,0.00028215,2]
[327410294,1716046249816,-500.0,0.00028215,2]
[327410297,1716046249826,-500.0,0.00028215,2]
[327410299,1716046249836,-500.0,0.00028215,2]
[327410301,1716046249848,-500.0,0.00028215,2]
[327410303,1716046249860,-500.0,0.00028216,2]
[327410305,1716046249871,-500.0,0.00028388,2]
[327410308,1716046249882,-500.0,0.00028388,2]
[327410310,1716046249895,-270.34,0.00028388,2]
[327410312,1716046249905,-500.0,0.00028388,2]
[327410314,1716046249915,-500.0,0.00028388,2]
[327410316,1716046249926,-500.0,0.00028388,2]
[327410318,1716046249936,-500.0,0.00028388,2]
[327410321,1716046249949,-406.24,0.00028388,2]
[327410323,1716046249959,-500.0,0.00028388,2]
[327410325,1716046249974,-500.0,0.00028388,2]
[327410326,1716046249987,-500.0,0.00028388,2]
[327410328,1716046249997,-500.0,0.00028388,2]
[327410330,1716046250007,-500.0,0.00028388,2]
[327410332,1716046250021,-500.0,0.00028388,2]
[327410335,1716046250031,-500.0,0.00028388,2]
[327410337,1716046250042,-500.0,0.00028388,2]
[327410339,1716046250055,-500.0,0.00028388,2]
[327410341,1716046250067,-500.0,0.00028388,2]
[327410343,1716046250077,-500.0,0.00028388,2]
[327410346,1716046250087,-500.0,0.00028388,2]
[327410348,1716046250098,-500.0,0.00028388,2]
[327410350,1716046250108,-500.0,0.00028388,2]
[327410352,1716046250118,-500.0,0.00028388,2]
[327410354,1716046250129,-500.0,0.00028462,2]
[327410356,1716046250141,-153.42,0.00028462,2]
[327410359,1716046250152,-500.0,0.00028462,2]
[327410361,1716046250163,-500.0,0.00028462,2]
[327410363,1716046250174,-500.0,0.00028462,2]
[327410365,1716046250184,-500.0,0.00028462,2]
[327410367,1716046250195,-809.8,0.00028462,2]
[327410369,1716046250207,-500.0,0.00028462,2]
[327410372,1716046250218,-524.22,0.00028462,2]
[327410374,1716046250229,-560.69,0.00028462,2]
[327410376,1716046250240,-500.0,0.00028462,2]
[327410378,1716046250250,-500.0,0.00028462,2]
[327410380,1716046250262,-500.0,0.00028462,2]
[327410383,1716046250273,-500.0,0.00028462,2]
[327410385,1716046250284,-1986.3,0.00028462,2]
[327410387,1716046250296,-586.44,0.00028462,2]
[327410389,1716046250307,-500.0,0.00028462,2]
[327410392,1716046250318,-3819.55,0.00028462,2]
[327410394,1716046250330,-500.0,0.00028462,2]
[327410396,1716046250341,-682.63,0.00028462,2]
[327410398,1716046250352,-500.0,0.00028462,2]
[327410400,1716046250364,-500.0,0.00028462,2]
[327410403,1716046250375,-500.0,0.00028462,2]
[327410405,1716046250387,-500.0,0.00028462,2]
[327410407,1716046250398,-564.42,0.00028462,2]
[327410409,1716046250408,-500.0,0.00028463,2]
[327410411,1716046250419,-500.0,0.00028463,2]
[327410414,1716046250429,-239.94,0.00028463,2]
[327410416,1716046250440,-500.0,0.00028463,2]
[327410418,1716046250450,-500.0,0.00028463,2]
[327410420,1716046250460,-500.0,0.00028463,2]
[327410422,1716046250471,-500.0,0.00028463,2]
[327410424,1716046250482,-500.0,0.00028463,2]
[327410426,1716046250492,-508.18,0.00028463,2]
[327410429,1716046250503,-500.0,0.00028463,2]
[327410431,1716046250514,-500.0,0.00028463,2]
[327410433,1716046250524,-569.34,0.00028463,2]
[327410435,1716046250535,-500.0,0.00028463,2]
[327410437,1716046250546,-500.0,0.00028463,2]
[327410440,1716046250556,-500.0,0.00028463,2]
[327410442,1716046250567,-400.44,0.00028463,2]
[327410444,1716046250578,-268.53,0.00028463,2]
[327410446,1716046250588,-500.0,0.00028463,2]
[327410448,1716046250599,-500.0,0.00028463,2]
[327410450,1716046250609,-500.0,0.00028463,2]
[327410453,1716046250621,-500.0,0.00028463,2]
[327410455,1716046250632,-500.0,0.00028463,2]
[327410457,1716046250642,-500.0,0.00028463,2]
[327410459,1716046250652,-500.0,0.00028463,2]
[327410461,1716046250663,-989.77,0.00028463,2]
[327410463,1716046250673,-500.0,0.00028463,2]
[327410465,1716046250683,-396.34778261,0.00028463,2]
[327410467,1716046250694,-608.1,0.00028463,2]
[327410470,1716046250706,-212.9,0.00028463,2]
[327410472,1716046250716,-428.12,0.00028463,2]
[327410474,1716046250726,-500.0,0.00028463,2]
[327410476,1716046250737,-500.0,0.00028463,2]
[327410478,1716046250747,-208.46,0.00028463,2]
[327410480,1716046250757,-500.0,0.00028463,2]
[327410482,1716046250768,-500.0,0.00028463,2]
[327410485,1716046250778,-500.0,0.00028463,2]
[327410487,1716046250789,-500.0,0.00028463,2]
[327410489,1716046250800,-500.0,0.00028463,2]
[327410491,1716046250810,-500.0,0.00028463,2]
[327410493,1716046250820,-500.0,0.00028463,2]
[327410495,1716046250831,-500.0,0.00028463,2]
[327410497,1716046250841,-896.8,0.00028463,2]
[327410499,1716046250851,-500.0,0.00028463,2]
[327410502,1716046250862,-500.0,0.00028463,2]
[327410504,1716046250872,-500.0,0.00028463,2]
[327410506,1716046250882,-500.0,0.00028463,2]
[327410508,1716046250893,-500.0,0.00028463,2]
[327410510,1716046250903,-500.0,0.00028463,2]
[327410512,1716046250914,-500.0,0.00028463,2]
[327410514,1716046250924,-655.65,0.00028463,2]
[327410516,1716046250934,-500.0,0.00028463,2]
[327410518,1716046250944,-500.0,0.00028463,2]
[327410520,1716046250956,-500.0,0.00028463,2]
[327410523,1716046250967,-500.0,0.00028463,2]
[327410525,1716046250982,-1041.33,0.00028463,2]
[327410527,1716046250992,-500.0,0.00028463,2]
[327410529,1716046251002,-549.92,0.00028463,2]
[327410531,1716046251012,-500.0,0.00028463,2]
[327410533,1716046251024,-500.0,0.00028463,2]
[327410535,1716046251034,-934.31,0.00028463,2]
[327410537,1716046251045,-3103.69,0.00028463,2]
[327410539,1716046251056,-500.0,0.00028463,2]
[327410541,1716046251067,-4162.6,0.00028463,2]
[327410544,1716046251078,-546.4,0.00028463,2]
[327410546,1716046251088,-1266.21,0.00028463,2]
[327410548,1716046251098,-500.0,0.00028463,2]
[327410550,1716046251109,-500.0,0.00028463,2]
[327410552,1716046251120,-500.0,0.00028463,2]
[327410554,1716046251130,-500.0,0.00028463,2]
[327410557,1716046251141,-1164.52,0.00028463,2]
[327410559,1716046251151,-3597.46,0.00028463,2]
[327410561,1716046251162,-578.67,0.00028463,2]
[327410563,1716046251172,-1187.83,0.00028463,2]
[327410565,1716046251183,-562.65427989,0.00028463,2]
[327410567,1716046251192,-181.14,0.00028463,2]
[327410569,1716046251202,-500.0,0.00028489,2]
[327410571,1716046251211,-500.0,0.00028489,2]
[327410594,1716046251421,-500.0,0.00028489,2]
[327410596,1716046251431,-500.0,0.00028489,2]
[327410598,1716046251440,-500.0,0.00028489,2]
[327410600,1716046251450,-500.0,0.00028489,2]
[327410602,1716046251459,-500.0,0.0002849,2]
[327410604,1716046251468,-500.0,0.00028662,2]
[327410606,1716046251478,-201.24,0.00028662,2]
[327410608,1716046251487,-500.0,0.00028662,2]
[327410610,1716046251497,-500.0,0.00028662,2]
[327410612,1716046251506,-500.0,0.00028662,2]
[327410615,1716046251518,-500.0,0.00028662,2]
[327410617,1716046251527,-380.79,0.00028662,2]
[327410619,1716046251537,-186.24,0.00028662,2]
[327410621,1716046251547,-405.48,0.00028662,2]
[327410623,1716046251556,-500.0,0.00028662,2]
[327410625,1716046251566,-500.0,0.00028662,2]
[327410627,1716046251575,-500.0,0.00028662,2]
[327410629,1716046251584,-500.0,0.00028662,2]
[327410631,1716046251593,-438.54,0.00028662,2]
[327410633,1716046251603,-500.0,0.00028662,2]
[327410635,1716046251613,-500.0,0.00028662,2]
[327410636,1716046251622,-941.0,0.000287,2]
[327410637,1716046251631,-500.0,0.00028736,2]
[327410638,1716046251640,-500.0,0.00028736,2]
[327410639,1716046251649,-500.0,0.00028736,2]
[327410640,1716046251658,-500.0,0.00028736,2]
[327410641,1716046251667,-500.0,0.00028736,2]
[327410642,1716046251676,-809.8,0.00028736,2]
[327410643,1716046251685,-500.0,0.00028736,2]
[327410644,1716046251694,-560.69,0.00028736,2]
[327410646,1716046251704,-500.0,0.00028736,2]
[327410648,1716046251714,-500.0,0.00028736,2]
[327410650,1716046251723,-500.0,0.00028736,2]
[327410652,1716046251732,-500.0,0.00028736,2]
[327410654,1716046251742,-1986.3,0.00028736,2]
[327410656,1716046251751,-500.0,0.00028736,2]
[327410658,1716046251760,-3819.55,0.00028736,2]
[327410660,1716046251769,-605.99083904,0.00028736,2]
[327410662,1716046251779,-682.63,0.00028736,2]
[327410664,1716046251788,-500.0,0.00028736,2]
[327410666,1716046251797,-452.2,0.00028736,2]
[327410668,1716046251806,-428.74,0.00028736,2]
[327410670,1716046251816,-500.0,0.00028736,2]
[327410672,1716046251825,-495.01528319,0.00028737,2]
[327410674,1716046251834,-500.0,0.00028737,2]
[327410676,1716046251844,-500.0,0.00028737,2]
[327410678,1716046251853,-500.0,0.00028737,2]
[327410680,1716046251863,-500.0,0.00028737,2]
[327410682,1716046251872,-339.68,0.00028737,2]
[327410684,1716046251882,-500.0,0.00028737,2]
[327410686,1716046251891,-500.0,0.00028737,2]
[327410688,1716046251900,-500.0,0.00028737,2]
[327410690,1716046251910,-569.34,0.00028737,2]
[327410692,1716046251919,-500.0,0.00028737,2]
[327410694,1716046251929,-500.0,0.00028737,2]
[327410696,1716046251939,-500.0,0.00028737,2]
[327410698,1716046251948,-500.0,0.00028737,2]
[327410700,1716046251959,-500.0,0.00028737,2]
[327410702,1716046251969,-500.0,0.00028737,2]
[327410704,1716046251984,-500.0,0.00028737,2]
[327410706,1716046251994,-500.0,0.00028737,2]
[327410708,1716046252004,-500.0,0.00028737,2]
[327410710,1716046252015,-989.77,0.00028737,2]
[327410712,1716046252024,-500.0,0.00028737,2]
[327410714,1716046252034,-608.1,0.00028737,2]
[327410716,1716046252043,-500.0,0.00028737,2]
[327410718,1716046252054,-500.0,0.00028737,2]
[327410720,1716046252063,-500.0,0.00028737,2]
[327410722,1716046252073,-500.0,0.00028737,2]
[327410724,1716046252083,-500.0,0.00028737,2]
[327410726,1716046252093,-622.59,0.00028737,2]
[327410728,1716046252102,-500.0,0.00028737,2]
[327410730,1716046252111,-500.0,0.00028737,2]
[327410733,1716046252121,-500.0,0.00028737,2]
[327410735,1716046252131,-896.8,0.00028737,2]
[327410737,1716046252140,-420.22,0.00028737,2]
[327410738,1716046252149,-500.0,0.00028737,2]
[327410741,1716046252159,-500.0,0.00028737,2]
[327410743,1716046252169,-500.0,0.00028737,2]
[327410745,1716046252179,-500.0,0.00028737,2]
[327410747,1716046252188,-500.0,0.00028737,2]
[327410749,1716046252197,-500.0,0.00028737,2]
[327410751,1716046252208,-500.0,0.00028737,2]
[327410753,1716046252218,-655.65,0.00028737,2]
[327410755,1716046252227,-500.0,0.00028737,2]
[327410757,1716046252236,-500.0,0.00028737,2]
[327410759,1716046252245,-500.0,0.00028737,2]
[327410761,1716046252255,-500.0,0.00028737,2]
[327410763,1716046252264,-1041.33,0.00028737,2]
[327410765,1716046252273,-500.0,0.00028737,2]
[327410767,1716046252283,-549.92,0.00028737,2]
[327410769,1716046252292,-500.0,0.00028737,2]
[327410771,1716046252301,-500.0,0.00028737,2]
[327410773,1716046252310,-934.31,0.00028737,2]
[327410775,1716046252319,-3103.69,0.00028737,2]
[327410777,1716046252329,-500.0,0.00028737,2]
[327410778,1716046252338,-4162.6,0.00028737,2]